[Event "Titled Tuesday Blitz March 08 Early 2022"]
[White "Odegov, Artem"]
[Black "Hambleton, Aman"]
[WhiteFideId "34183644"]
[BlackFideId "2606577"]
[WhiteElo "2286"]
[BlackElo "2552"]
[Result "1-0"]
[Round "05"]
[TimeControl "180+1"]
[Date "2022.03.09"]
[WhiteClock "0:00:07"]
[BlackClock "0:00:02"]

1. d4 {[%clk 0:03:00]}  Nf6 {[%clk 0:02:57]} 2. c4 {[%clk 0:02:58]}  e6 {[%clk 0:02:50]} 3. Nf3 {[%clk 0:02:57]}  b6 {[%clk 0:02:46]} 4. g3 {[%clk 0:02:56]}  Ba6 {[%clk 0:02:43]} 5. b3 {[%clk 0:02:56]}  Bb4+ {[%clk 0:02:39]} 6. Bd2 {[%clk 0:02:55]}  c5 {[%clk 0:02:40]} 7. Bxb4 {[%clk 0:02:51]}  cxb4 {[%clk 0:02:41]} 8. Bg2 {[%clk 0:02:51]}  Bb7 {[%clk 0:02:40]} 9. O-O {[%clk 0:02:51]}  a5 {[%clk 0:02:40]} 10. Nbd2 {[%clk 0:02:50]}  d6 {[%clk 0:02:22]} 11. Qc2 {[%clk 0:02:49]}  Nbd7 {[%clk 0:02:21]} 12. e4 {[%clk 0:02:43]}  e5 {[%clk 0:02:21]} 13. Rad1 {[%clk 0:02:42]}  O-O {[%clk 0:02:19]} 14. Rfe1 {[%clk 0:02:41]}  Re8 {[%clk 0:02:15]} 15. c5 {[%clk 0:02:24]}  bxc5 {[%clk 0:01:45]} 16. dxe5 {[%clk 0:02:24]}  dxe5 {[%clk 0:01:39]} 17. Nc4 {[%clk 0:02:20]}  Qc7 {[%clk 0:01:35]} 18. Nd6 {[%clk 0:02:12]}  Red8 {[%clk 0:01:34]} 19. Ng5 {[%clk 0:02:02]}  Rf8 {[%clk 0:01:16]} 20. Bh3 {[%clk 0:01:19]}  Nb6 {[%clk 0:00:11]} 21. Ngxf7 {[%clk 0:00:51]}  Rxf7 {[%clk 0:00:09]} 22. Be6 {[%clk 0:00:52]}  Rf8 {[%clk 0:00:09]} 23. Rd2 {[%clk 0:00:37]}  Bc8 {[%clk 0:00:07]} 24. Bxf7+ {[%clk 0:00:34]}  Rxf7 {[%clk 0:00:07]} 25. Nxf7 {[%clk 0:00:34]}  Kxf7 {[%clk 0:00:07]} 26. Rc1 {[%clk 0:00:32]}  c4 {[%clk 0:00:05]} 27. bxc4 {[%clk 0:00:31]}  Qc5 {[%clk 0:00:05]} 28. Qd3 {[%clk 0:00:19]}  Be6 {[%clk 0:00:03]} 29. Qd6 {[%clk 0:00:17]}  Qxd6 {[%clk 0:00:03]} 30. Rxd6 {[%clk 0:00:18]}  Na4 {[%clk 0:00:01]} 31. Ra6 {[%clk 0:00:16]}  Nc3 {[%clk 0:00:01]} 32. Rc2 {[%clk 0:00:15]}  Nfxe4 {[%clk 0:00:01]} 33. Rxa5 {[%clk 0:00:13]}  Bxc4 {[%clk 0:00:02]} 34. Rxe5 {[%clk 0:00:12]}  Nxa2 {[%clk 0:00:01]} 35. Rxe4 {[%clk 0:00:10]}  b3 {[%clk 0:00:01]} 36. Rexc4 {[%clk 0:00:08]}  bxc2 {[%clk 0:00:02]} 37. Rxc2 {[%clk 0:00:08]}  Nb4 {[%clk 0:00:03]} 38. Rc7+ {[%clk 0:00:09]}  Kf6 {[%clk 0:00:03]} 39. Rb7 {[%clk 0:00:09]}  Nd5 {[%clk 0:00:03]} 40. Kg2 {[%clk 0:00:08]}  Nc3 {[%clk 0:00:04]} 41. Rb3 {[%clk 0:00:06]}  Ne4 {[%clk 0:00:03]} 42. Rb4 {[%clk 0:00:06]}  Nc5 {[%clk 0:00:03]} 43. Rb6+ {[%clk 0:00:06]}  Kf7 {[%clk 0:00:03]} 44. Rb5 {[%clk 0:00:07]}  Nd3 {[%clk 0:00:03]} 45. Rd5 {[%clk 0:00:07]}  Nb4 {[%clk 0:00:03]} 46. Rd4 {[%clk 0:00:08]}  Nc6 {[%clk 0:00:04]} 47. Ra4 {[%clk 0:00:08]}  Ne5 {[%clk 0:00:04]} 48. f4 {[%clk 0:00:08]}  Nd3 {[%clk 0:00:04]} 49. Kf3 {[%clk 0:00:08]}  Nc5 {[%clk 0:00:04]} 50. Ra7+ {[%clk 0:00:08]}  Kf6 {[%clk 0:00:04]} 51. g4 {[%clk 0:00:09]}  h6 {[%clk 0:00:04]} 52. h4 {[%clk 0:00:09]}  Nb3 {[%clk 0:00:03]} 53. Ra6+ {[%clk 0:00:09]}  Kf7 {[%clk 0:00:03]} 54. f5 {[%clk 0:00:08]}  Nd4+ {[%clk 0:00:02]} 55. Ke4 {[%clk 0:00:07]}  Nb3 {[%clk 0:00:02]} 56. Rb6 {[%clk 0:00:05]}  Nc5+ {[%clk 0:00:01]} 57. Kd5 {[%clk 0:00:05]}  Nd3 {[%clk 0:00:01]} 58. g5 {[%clk 0:00:06]}  hxg5 {[%clk 0:00:01]} 59. hxg5 {[%clk 0:00:07]}  Nf4+ {[%clk 0:00:02]} 60. Ke4 {[%clk 0:00:07]}  Ne2 {[%clk 0:00:02]} 61. Rb7+ {[%clk 0:00:07]}  Kf8 {[%clk 0:00:02]} 62. Ke5 {[%clk 0:00:08]}  Nc3 {[%clk 0:00:02]} 63. Ke6 {[%clk 0:00:08]}  Kg8 {[%clk 0:00:03]} 64. g6 {[%clk 0:00:08]}  Ne4 {[%clk 0:00:02]} 65. Rb8# {[%clk 0:00:07]} 1-0


[Site "https://www.chess.com"]

[Event "Titled Tuesday Blitz March 08 Early 2022"]
[White "Oparin, Grigoriy"]
[Black "Bachmann, Axel"]
[WhiteFideId "24125890"]
[BlackFideId "3700488"]
[WhiteElo "2921"]
[BlackElo "2817"]
[Result "1-0"]
[Round "05"]
[TimeControl "180+1"]
[Date "2022.03.08"]
[WhiteClock "0:00:07"]
[BlackClock "0:00:39"]

1. d4 {[%clk 0:02:57]}  Nf6 {[%clk 0:02:59]} 2. Nf3 {[%clk 0:02:58]}  b6 {[%clk 0:02:58]} 3. g3 {[%clk 0:02:58]}  Bb7 {[%clk 0:02:56]} 4. c4 {[%clk 0:02:58]}  g6 {[%clk 0:02:55]} 5. Bg2 {[%clk 0:02:59]}  Bg7 {[%clk 0:02:55]} 6. O-O {[%clk 0:03:00]}  O-O {[%clk 0:02:56]} 7. Re1 {[%clk 0:03:00]}  e6 {[%clk 0:02:51]} 8. Bf4 {[%clk 0:02:59]}  Na6 {[%clk 0:02:49]} 9. a3 {[%clk 0:02:54]}  c5 {[%clk 0:02:44]} 10. dxc5 {[%clk 0:02:31]}  Nxc5 {[%clk 0:02:43]} 11. Nc3 {[%clk 0:02:27]}  Nfe4 {[%clk 0:02:41]} 12. Nxe4 {[%clk 0:02:26]}  Bxe4 {[%clk 0:02:36]} 13. b4 {[%clk 0:02:22]}  Nb7 {[%clk 0:02:31]} 14. Rc1 {[%clk 0:02:22]}  Bb2 {[%clk 0:02:29]} 15. Qd2 {[%clk 0:02:18]}  Bxc1 {[%clk 0:02:25]} 16. Rxc1 {[%clk 0:02:19]}  d5 {[%clk 0:02:23]} 17. c5 {[%clk 0:02:03]}  bxc5 {[%clk 0:02:20]} 18. bxc5 {[%clk 0:00:30]}  Qa5 {[%clk 0:02:18]} 19. Qe3 {[%clk 0:00:28]}  Rac8 {[%clk 0:01:56]} 20. c6 {[%clk 0:00:26]}  Nd8 {[%clk 0:01:57]} 21. c7 {[%clk 0:00:26]}  Nb7 {[%clk 0:01:57]} 22. h4 {[%clk 0:00:25]}  f6 {[%clk 0:01:55]} 23. Qb3 {[%clk 0:00:16]}  Qb6 {[%clk 0:01:50]} 24. Qa4 {[%clk 0:00:11]}  e5 {[%clk 0:01:45]} 25. Be3 {[%clk 0:00:11]}  d4 {[%clk 0:01:44]} 26. Bh6 {[%clk 0:00:07]}  Bxf3 {[%clk 0:00:48]} 27. Bxf3 {[%clk 0:00:07]}  Rf7 {[%clk 0:00:39]} 28. Bd5 {[%clk 0:00:07]}  Rxc7 {[%clk 0:00:39]} 29. Qe8# {[%clk 0:00:07]} 1-0


[Site "https://www.chess.com"]

[Event "Titled Tuesday Blitz March 08 Early 2022"]
[White "Pinheiro, Iung Alicio de O."]
[Black "Majella, Rudijanto"]
[WhiteFideId "2104350"]
[BlackFideId "7100680"]
[WhiteElo "2560"]
[BlackElo "2252"]
[Result "1-0"]
[Round "05"]
[TimeControl "180+1"]
[Date "2022.03.09"]
[WhiteClock "0:00:14"]
[BlackClock "0:00:17"]

1. c4 {[%clk 0:02:59]}  e5 {[%clk 0:02:54]} 2. g3 {[%clk 0:02:59]}  Nf6 {[%clk 0:02:52]} 3. Bg2 {[%clk 0:02:58]}  Nc6 {[%clk 0:02:52]} 4. Nc3 {[%clk 0:02:51]}  Bc5 {[%clk 0:02:52]} 5. a3 {[%clk 0:02:42]}  a6 {[%clk 0:02:51]} 6. e3 {[%clk 0:02:42]}  d6 {[%clk 0:02:50]} 7. Nge2 {[%clk 0:02:40]}  O-O {[%clk 0:02:48]} 8. h3 {[%clk 0:02:28]}  Ba7 {[%clk 0:02:47]} 9. O-O {[%clk 0:02:25]}  Be6 {[%clk 0:02:47]} 10. Nd5 {[%clk 0:02:14]}  Bxd5 {[%clk 0:02:44]} 11. cxd5 {[%clk 0:02:13]}  Ne7 {[%clk 0:02:44]} 12. d4 {[%clk 0:01:50]}  Nexd5 {[%clk 0:02:03]} 13. Qb3 {[%clk 0:01:45]}  c6 {[%clk 0:01:36]} 14. dxe5 {[%clk 0:01:33]}  dxe5 {[%clk 0:01:33]} 15. Qxb7 {[%clk 0:01:32]}  Qb6 {[%clk 0:01:33]} 16. Qxb6 {[%clk 0:01:26]}  Bxb6 {[%clk 0:01:34]} 17. b3 {[%clk 0:01:21]}  Rab8 {[%clk 0:01:31]} 18. Bb2 {[%clk 0:01:20]}  Bc7 {[%clk 0:01:30]} 19. Nc1 {[%clk 0:01:03]}  Rfd8 {[%clk 0:01:25]} 20. Ra2 {[%clk 0:01:02]}  Ne7 {[%clk 0:01:18]} 21. Ba1 {[%clk 0:01:00]}  Rd7 {[%clk 0:01:05]} 22. Rc2 {[%clk 0:00:59]}  e4 {[%clk 0:00:59]} 23. Bxf6 {[%clk 0:00:55]}  gxf6 {[%clk 0:00:58]} 24. Bxe4 {[%clk 0:00:56]}  Nd5 {[%clk 0:00:54]} 25. Rxc6 {[%clk 0:00:49]}  Be5 {[%clk 0:00:50]} 26. Nd3 {[%clk 0:00:44]}  Ne7 {[%clk 0:00:46]} 27. Nxe5 {[%clk 0:00:41]}  fxe5 {[%clk 0:00:45]} 28. Rc3 {[%clk 0:00:41]}  f5 {[%clk 0:00:43]} 29. Bd3 {[%clk 0:00:40]}  Kg7 {[%clk 0:00:41]} 30. Bxa6 {[%clk 0:00:40]}  Ra7 {[%clk 0:00:39]} 31. Bc4 {[%clk 0:00:34]}  Rxa3 {[%clk 0:00:38]} 32. Rd1 {[%clk 0:00:35]}  Rb7 {[%clk 0:00:37]} 33. Rcd3 {[%clk 0:00:34]}  Raa7 {[%clk 0:00:33]} 34. Rd6 {[%clk 0:00:33]}  Rc7 {[%clk 0:00:27]} 35. Re6 {[%clk 0:00:32]}  Ng6 {[%clk 0:00:26]} 36. h4 {[%clk 0:00:31]}  Re7 {[%clk 0:00:19]} 37. Rc6 {[%clk 0:00:19]}  Rad7 {[%clk 0:00:13]} 38. Rdd6 {[%clk 0:00:17]}  Rxd6 {[%clk 0:00:13]} 39. Rxd6 {[%clk 0:00:18]}  h5 {[%clk 0:00:10]} 40. b4 {[%clk 0:00:17]}  f4 {[%clk 0:00:09]} 41. e4 {[%clk 0:00:15]}  fxg3 {[%clk 0:00:06]} 42. fxg3 {[%clk 0:00:16]}  Rc7 {[%clk 0:00:05]} 43. Bd5 {[%clk 0:00:13]}  Rc3 {[%clk 0:00:01]} 44. Kf2 {[%clk 0:00:12]}  Rc2+ {[%clk 0:00:02]} 45. Ke3 {[%clk 0:00:12]}  Rc3+ {[%clk 0:00:03]} 46. Kf2 {[%clk 0:00:09]}  Rc2+ {[%clk 0:00:03]} 47. Ke1 {[%clk 0:00:10]}  Rc3 {[%clk 0:00:04]} 48. b5 {[%clk 0:00:10]}  Rxg3 {[%clk 0:00:04]} 49. b6 {[%clk 0:00:10]}  Nf4 {[%clk 0:00:04]} 50. b7 {[%clk 0:00:11]}  Rg1+ {[%clk 0:00:03]} 51. Kd2 {[%clk 0:00:11]}  Rb1 {[%clk 0:00:04]} 52. Rd8 {[%clk 0:00:09]}  Nxd5 {[%clk 0:00:04]} 53. b8=Q {[%clk 0:00:10]}  Rxb8 {[%clk 0:00:04]} 54. Rxb8 {[%clk 0:00:11]}  Nf6 {[%clk 0:00:05]} 55. Ke3 {[%clk 0:00:10]}  Ng4+ {[%clk 0:00:05]} 56. Kf3 {[%clk 0:00:10]}  Nf6 {[%clk 0:00:06]} 57. Rb5 {[%clk 0:00:09]}  Ng4 {[%clk 0:00:05]} 58. Rb6 {[%clk 0:00:09]}  Nf6 {[%clk 0:00:05]} 59. Re6 {[%clk 0:00:08]}  Ng4 {[%clk 0:00:05]} 60. Ra6 {[%clk 0:00:08]}  Nf6 {[%clk 0:00:05]} 61. Ke3 {[%clk 0:00:08]}  Ng4+ {[%clk 0:00:05]} 62. Kd3 {[%clk 0:00:09]}  Nf2+ {[%clk 0:00:05]} 63. Ke3 {[%clk 0:00:08]}  Ng4+ {[%clk 0:00:05]} 64. Kf3 {[%clk 0:00:05]}  Nf6 {[%clk 0:00:06]} 65. Ra4 {[%clk 0:00:06]}  Kg6 {[%clk 0:00:05]} 66. Ra1 {[%clk 0:00:06]}  Ng4 {[%clk 0:00:05]} 67. Rg1 {[%clk 0:00:07]}  Kh6 {[%clk 0:00:05]} 68. Rxg4 {[%clk 0:00:07]}  hxg4+ {[%clk 0:00:06]} 69. Kxg4 {[%clk 0:00:08]}  Kg6 {[%clk 0:00:07]} 70. h5+ {[%clk 0:00:09]}  Kf6 {[%clk 0:00:06]} 71. h6 {[%clk 0:00:09]}  Kg6 {[%clk 0:00:06]} 72. h7 {[%clk 0:00:10]}  Kxh7 {[%clk 0:00:07]} 73. Kf5 {[%clk 0:00:11]}  Kg7 {[%clk 0:00:07]} 74. Kxe5 {[%clk 0:00:12]}  Kf7 {[%clk 0:00:08]} 75. Kd6 {[%clk 0:00:12]}  Ke8 {[%clk 0:00:09]} 76. Ke6 {[%clk 0:00:10]}  Kf8 {[%clk 0:00:09]} 77. Kd7 {[%clk 0:00:08]}  Kf7 {[%clk 0:00:10]} 78. e5 {[%clk 0:00:09]}  Kf8 {[%clk 0:00:11]} 79. e6 {[%clk 0:00:10]}  Kg7 {[%clk 0:00:11]} 80. e7 {[%clk 0:00:11]}  Kh8 {[%clk 0:00:12]} 81. e8=Q+ {[%clk 0:00:12]}  Kg7 {[%clk 0:00:13]} 82. Qe5+ {[%clk 0:00:12]}  Kh7 {[%clk 0:00:14]} 83. Qf6 {[%clk 0:00:11]}  Kg8 {[%clk 0:00:15]} 84. Qe7 {[%clk 0:00:11]}  Kh8 {[%clk 0:00:15]} 85. Ke6 {[%clk 0:00:12]}  Kg8 {[%clk 0:00:16]} 86. Kf6 {[%clk 0:00:13]}  Kh8 {[%clk 0:00:17]} 87. Qg7# {[%clk 0:00:14]} 1-0


[Site "https://www.chess.com"]

[Event "Titled Tuesday Blitz March 08 Early 2022"]
[White "Polster, Christian"]
[Black "Derige Kane, Yan"]
[WhiteFideId "12965081"]
[BlackFideId "20665431"]
[WhiteElo "2281"]
[BlackElo "2169"]
[Result "0-1"]
[Round "05"]
[TimeControl "180+1"]
[Date "2022.03.09"]
[WhiteClock "0:00:01"]
[BlackClock "0:01:25"]

1. e4 {[%clk 0:02:59]}  Nf6 {[%clk 0:02:40]} 2. e5 {[%clk 0:02:58]}  Ng8 {[%clk 0:02:41]} 3. Bc4 {[%clk 0:02:48]}  d6 {[%clk 0:02:41]} 4. Nf3 {[%clk 0:02:34]}  Nc6 {[%clk 0:02:41]} 5. d4 {[%clk 0:02:29]}  dxe5 {[%clk 0:02:39]} 6. d5 {[%clk 0:02:12]}  e4 {[%clk 0:02:33]} 7. Ng5 {[%clk 0:01:33]}  Ne5 {[%clk 0:02:30]} 8. Bb3 {[%clk 0:01:29]}  Bf5 {[%clk 0:02:27]} 9. Bf4 {[%clk 0:01:04]}  Ng6 {[%clk 0:02:22]} 10. Bg3 {[%clk 0:00:48]}  h6 {[%clk 0:02:18]} 11. Nxf7 {[%clk 0:00:19]}  Kxf7 {[%clk 0:02:17]} 12. Qh5 {[%clk 0:00:18]}  Qd7 {[%clk 0:02:12]} 13. d6+ {[%clk 0:00:18]}  Ke8 {[%clk 0:02:13]} 14. dxc7 {[%clk 0:00:07]}  e6 {[%clk 0:02:02]} 15. Nc3 {[%clk 0:00:06]}  Nf6 {[%clk 0:02:00]} 16. Qe2 {[%clk 0:00:06]}  Bb4 {[%clk 0:01:58]} 17. Rd1 {[%clk 0:00:04]}  Qc6 {[%clk 0:01:58]} 18. Bc4 {[%clk 0:00:03]}  a6 {[%clk 0:01:53]} 19. O-O {[%clk 0:00:03]}  Bxc3 {[%clk 0:01:52]} 20. bxc3 {[%clk 0:00:03]}  Kf7 {[%clk 0:01:38]} 21. Rd6 {[%clk 0:00:03]}  Qc5 {[%clk 0:01:37]} 22. Rfd1 {[%clk 0:00:01]}  Bg4 {[%clk 0:01:25]} 23. Qe1 {[%clk 0:00:01]}  Bxd1 {[%clk 0:01:25]} 0-1


[Site "https://www.chess.com"]

[Event "Titled Tuesday Blitz March 08 Early 2022"]
[White "Popadic, Dragan"]
[Black "Spata, German"]
[WhiteFideId "913650"]
[BlackFideId "113026"]
[WhiteElo "2222"]
[BlackElo "2238"]
[Result "0-1"]
[Round "05"]
[TimeControl "180+1"]
[Date "2022.03.09"]
[WhiteClock "0:00:01"]
[BlackClock "0:00:16"]

1. e4 {[%clk 0:03:00]}  e6 {[%clk 0:03:00]} 2. Nf3 {[%clk 0:02:59]}  d5 {[%clk 0:03:00]} 3. e5 {[%clk 0:02:59]}  c5 {[%clk 0:03:00]} 4. b4 {[%clk 0:02:59]}  c4 {[%clk 0:03:00]} 5. c3 {[%clk 0:02:57]}  a5 {[%clk 0:02:58]} 6. b5 {[%clk 0:02:57]}  a4 {[%clk 0:02:58]} 7. Na3 {[%clk 0:02:56]}  Nd7 {[%clk 0:02:57]} 8. d3 {[%clk 0:02:56]}  cxd3 {[%clk 0:02:55]} 9. Bxd3 {[%clk 0:02:55]}  Qc7 {[%clk 0:02:40]} 10. O-O {[%clk 0:02:35]}  Nxe5 {[%clk 0:02:39]} 11. Re1 {[%clk 0:02:34]}  Nxd3 {[%clk 0:02:35]} 12. Qxd3 {[%clk 0:02:34]}  Nf6 {[%clk 0:02:35]} 13. Rb1 {[%clk 0:02:20]}  Bd6 {[%clk 0:02:23]} 14. b6 {[%clk 0:02:19]}  Qe7 {[%clk 0:02:15]} 15. Nb5 {[%clk 0:02:19]}  O-O {[%clk 0:02:04]} 16. c4 {[%clk 0:02:19]}  Bd7 {[%clk 0:01:58]} 17. Nxd6 {[%clk 0:02:16]}  Qxd6 {[%clk 0:01:58]} 18. Ba3 {[%clk 0:02:16]}  Qf4 {[%clk 0:01:51]} 19. Bxf8 {[%clk 0:02:09]}  dxc4 {[%clk 0:01:46]} 20. Bd6 {[%clk 0:01:57]}  Qg4 {[%clk 0:01:16]} 21. Qd4 {[%clk 0:01:40]}  Qh5 {[%clk 0:01:09]} 22. Ne5 {[%clk 0:01:27]}  Be8 {[%clk 0:01:04]} 23. Qxc4 {[%clk 0:01:20]}  Nd5 {[%clk 0:00:57]} 24. Qg4 {[%clk 0:01:09]}  Qh6 {[%clk 0:00:57]} 25. Rbc1 {[%clk 0:00:58]}  Qd2 {[%clk 0:00:56]} 26. Qe2 {[%clk 0:00:51]}  Qg5 {[%clk 0:00:53]} 27. Nf3 {[%clk 0:00:44]}  Qg4 {[%clk 0:00:52]} 28. Qe4 {[%clk 0:00:32]}  Qh5 {[%clk 0:00:51]} 29. Rcd1 {[%clk 0:00:31]}  Bc6 {[%clk 0:00:50]} 30. Qh4 {[%clk 0:00:18]}  Qf5 {[%clk 0:00:38]} 31. Ne5 {[%clk 0:00:16]}  Be8 {[%clk 0:00:31]} 32. Qe4 {[%clk 0:00:16]}  Qxe4 {[%clk 0:00:28]} 33. Rxe4 {[%clk 0:00:15]}  Nc3 {[%clk 0:00:29]} 34. Ree1 {[%clk 0:00:11]}  Nxd1 {[%clk 0:00:29]} 35. Rxd1 {[%clk 0:00:11]}  f6 {[%clk 0:00:28]} 36. Nf3 {[%clk 0:00:10]}  Bc6 {[%clk 0:00:28]} 37. Bc7 {[%clk 0:00:09]}  a3 {[%clk 0:00:26]} 38. Rd8+ {[%clk 0:00:07]}  Rxd8 {[%clk 0:00:26]} 39. Bxd8 {[%clk 0:00:07]}  Bd5 {[%clk 0:00:27]} 40. Be7 {[%clk 0:00:07]}  Bxa2 {[%clk 0:00:24]} 41. Bxa3 {[%clk 0:00:07]}  e5 {[%clk 0:00:25]} 42. Bd6 {[%clk 0:00:06]}  Kf7 {[%clk 0:00:25]} 43. Bc7 {[%clk 0:00:05]}  Ke6 {[%clk 0:00:25]} 44. Kf1 {[%clk 0:00:05]}  Bc4+ {[%clk 0:00:24]} 45. Ke1 {[%clk 0:00:05]}  g5 {[%clk 0:00:24]} 46. Nd2 {[%clk 0:00:04]}  Bd5 {[%clk 0:00:24]} 47. f3 {[%clk 0:00:05]}  h5 {[%clk 0:00:25]} 48. Ke2 {[%clk 0:00:05]}  g4 {[%clk 0:00:24]} 49. Ke3 {[%clk 0:00:05]}  f5 {[%clk 0:00:23]} 50. Nb1 {[%clk 0:00:04]}  Bc6 {[%clk 0:00:19]} 51. Nc3 {[%clk 0:00:04]}  h4 {[%clk 0:00:16]} 52. fxg4 {[%clk 0:00:01]}  Bxg2 {[%clk 0:00:16]} 0-1


[Site "https://www.chess.com"]

[Event "Titled Tuesday Blitz March 08 Early 2022"]
[White "Proudian, Armen"]
[Black "Bluebaum, Matthias"]
[WhiteFideId "2130734"]
[BlackFideId "24651516"]
[WhiteElo "2623"]
[BlackElo "2851"]
[Result "0-1"]
[Round "05"]
[TimeControl "180+1"]
[Date "2022.03.08"]
[WhiteClock "0:00:15"]
[BlackClock "0:00:14"]

1. e4 {[%clk 0:03:00]}  c6 {[%clk 0:03:00]} 2. d4 {[%clk 0:02:59]}  d5 {[%clk 0:03:00]} 3. Nc3 {[%clk 0:03:00]}  dxe4 {[%clk 0:03:01]} 4. Nxe4 {[%clk 0:03:01]}  Nf6 {[%clk 0:03:01]} 5. Nxf6+ {[%clk 0:03:01]}  exf6 {[%clk 0:03:02]} 6. c3 {[%clk 0:03:02]}  Bd6 {[%clk 0:03:03]} 7. Bd3 {[%clk 0:03:02]}  O-O {[%clk 0:03:04]} 8. Ne2 {[%clk 0:03:02]}  Re8 {[%clk 0:03:04]} 9. Qc2 {[%clk 0:03:03]}  h5 {[%clk 0:03:04]} 10. Be3 {[%clk 0:03:02]}  Nd7 {[%clk 0:03:04]} 11. g4 {[%clk 0:03:03]}  hxg4 {[%clk 0:03:00]} 12. O-O-O {[%clk 0:03:03]}  Nf8 {[%clk 0:02:58]} 13. Rdg1 {[%clk 0:02:56]}  Be6 {[%clk 0:02:17]} 14. h3 {[%clk 0:02:53]}  Bd5 {[%clk 0:02:17]} 15. hxg4 {[%clk 0:02:48]}  Bxh1 {[%clk 0:02:17]} 16. Rxh1 {[%clk 0:02:49]}  g6 {[%clk 0:02:17]} 17. Qd1 {[%clk 0:02:26]}  Ne6 {[%clk 0:01:10]} 18. Qf1 {[%clk 0:02:11]}  Ng5 {[%clk 0:01:00]} 19. Bd2 {[%clk 0:01:37]}  Kg7 {[%clk 0:00:58]} 20. f4 {[%clk 0:01:37]}  Ne4 {[%clk 0:00:58]} 21. Qh3 {[%clk 0:01:37]}  Rh8 {[%clk 0:00:40]} 22. Qxh8+ {[%clk 0:01:37]}  Qxh8 {[%clk 0:00:41]} 23. Rxh8 {[%clk 0:01:37]}  Rxh8 {[%clk 0:00:42]} 24. Bxe4 {[%clk 0:01:38]}  Rh2 {[%clk 0:00:41]} 25. Bd3 {[%clk 0:01:32]}  Rg2 {[%clk 0:00:38]} 26. g5 {[%clk 0:01:30]}  fxg5 {[%clk 0:00:39]} 27. fxg5 {[%clk 0:01:30]}  Be7 {[%clk 0:00:39]} 28. Nf4 {[%clk 0:01:28]}  Rg3 {[%clk 0:00:32]} 29. d5 {[%clk 0:01:04]}  cxd5 {[%clk 0:00:24]} 30. Kc2 {[%clk 0:01:03]}  Bxg5 {[%clk 0:00:24]} 31. Ne2 {[%clk 0:00:52]}  Rg2 {[%clk 0:00:23]} 32. Bxg5 {[%clk 0:00:50]}  Rxg5 {[%clk 0:00:24]} 33. Kd2 {[%clk 0:00:51]}  Kf6 {[%clk 0:00:23]} 34. Ke3 {[%clk 0:00:51]}  Ke5 {[%clk 0:00:24]} 35. Nd4 {[%clk 0:00:51]}  Rh5 {[%clk 0:00:15]} 36. Nf3+ {[%clk 0:00:51]}  Kd6 {[%clk 0:00:15]} 37. b3 {[%clk 0:00:41]}  f5 {[%clk 0:00:15]} 38. c4 {[%clk 0:00:40]}  dxc4 {[%clk 0:00:15]} 39. Bxc4 {[%clk 0:00:41]}  Ke7 {[%clk 0:00:15]} 40. Kf4 {[%clk 0:00:40]}  Kf6 {[%clk 0:00:15]} 41. Ke3 {[%clk 0:00:36]}  g5 {[%clk 0:00:16]} 42. Bd5 {[%clk 0:00:35]}  g4 {[%clk 0:00:15]} 43. Nd4 {[%clk 0:00:34]}  Ke5 {[%clk 0:00:15]} 44. Bxb7 {[%clk 0:00:23]}  Rh3+ {[%clk 0:00:15]} 45. Nf3+ {[%clk 0:00:20]}  gxf3 {[%clk 0:00:15]} 46. Bxf3 {[%clk 0:00:21]}  f4+ {[%clk 0:00:15]} 47. Kf2 {[%clk 0:00:20]}  Kd4 {[%clk 0:00:13]} 48. Bg2 {[%clk 0:00:19]}  Rc3 {[%clk 0:00:13]} 49. Bf1 {[%clk 0:00:14]}  Rc2+ {[%clk 0:00:13]} 50. Kf3 {[%clk 0:00:15]}  Rxa2 {[%clk 0:00:13]} 51. Kxf4 {[%clk 0:00:15]}  Rf2+ {[%clk 0:00:14]} 0-1


[Site "https://www.chess.com"]

[Event "Titled Tuesday Blitz March 08 Early 2022"]
[White "Rastbod, Ali"]
[Black "Jaskolka, Tomasz"]
[WhiteFideId "12567477"]
[BlackFideId "1170791"]
[WhiteElo "2200"]
[BlackElo "2073"]
[Result "1-0"]
[Round "05"]
[TimeControl "180+1"]
[Date "2022.03.09"]
[WhiteClock "0:01:01"]
[BlackClock "0:00:04"]

1. c4 {[%clk 0:03:00]}  Nf6 {[%clk 0:02:54]} 2. Nc3 {[%clk 0:02:55]}  e6 {[%clk 0:02:54]} 3. e4 {[%clk 0:02:55]}  d5 {[%clk 0:02:51]} 4. e5 {[%clk 0:02:55]}  d4 {[%clk 0:02:51]} 5. exf6 {[%clk 0:02:55]}  dxc3 {[%clk 0:02:51]} 6. bxc3 {[%clk 0:02:56]}  Qxf6 {[%clk 0:02:48]} 7. d4 {[%clk 0:02:57]}  c5 {[%clk 0:02:47]} 8. Nf3 {[%clk 0:02:57]}  Nc6 {[%clk 0:02:46]} 9. Bg5 {[%clk 0:02:57]}  Qg6 {[%clk 0:02:42]} 10. Bd3 {[%clk 0:02:57]}  Qh5 {[%clk 0:02:43]} 11. h3 {[%clk 0:02:38]}  f6 {[%clk 0:02:43]} 12. Be3 {[%clk 0:02:30]}  e5 {[%clk 0:02:17]} 13. d5 {[%clk 0:02:25]}  Nd8 {[%clk 0:02:16]} 14. Qc2 {[%clk 0:02:05]}  b6 {[%clk 0:02:06]} 15. a4 {[%clk 0:02:05]}  Nb7 {[%clk 0:02:03]} 16. Nd2 {[%clk 0:02:04]}  Bd6 {[%clk 0:01:51]} 17. Ne4 {[%clk 0:02:03]}  f5 {[%clk 0:01:37]} 18. Ng3 {[%clk 0:02:01]}  Qf7 {[%clk 0:01:31]} 19. Bxf5 {[%clk 0:02:01]}  Bxf5 {[%clk 0:01:22]} 20. Qxf5 {[%clk 0:02:02]}  Qxf5 {[%clk 0:01:22]} 21. Nxf5 {[%clk 0:02:01]}  g6 {[%clk 0:01:23]} 22. Ng7+ {[%clk 0:01:46]}  Kf7 {[%clk 0:01:22]} 23. Ne6 {[%clk 0:01:47]}  Na5 {[%clk 0:01:20]} 24. Ke2 {[%clk 0:01:46]}  Nxc4 {[%clk 0:01:18]} 25. Kd3 {[%clk 0:01:47]}  Na5 {[%clk 0:01:00]} 26. Ke4 {[%clk 0:01:42]}  Rhe8 {[%clk 0:00:53]} 27. h4 {[%clk 0:01:28]}  h5 {[%clk 0:00:40]} 28. f3 {[%clk 0:01:26]}  a6 {[%clk 0:00:30]} 29. g4 {[%clk 0:01:25]}  Rec8 {[%clk 0:00:26]} 30. Rhg1 {[%clk 0:01:23]}  hxg4 {[%clk 0:00:25]} 31. fxg4 {[%clk 0:01:22]}  b5 {[%clk 0:00:25]} 32. h5 {[%clk 0:01:19]}  b4 {[%clk 0:00:20]} 33. Raf1+ {[%clk 0:01:07]}  Kg8 {[%clk 0:00:21]} 34. hxg6 {[%clk 0:01:07]}  bxc3 {[%clk 0:00:21]} 35. Rf7 {[%clk 0:01:07]}  Bf8 {[%clk 0:00:18]} 36. Rh1 {[%clk 0:01:06]}  Nc4 {[%clk 0:00:17]} 37. Rfh7 {[%clk 0:01:04]}  Nd6+ {[%clk 0:00:09]} 38. Kxe5 {[%clk 0:01:05]}  Nc4+ {[%clk 0:00:05]} 39. Ke4 {[%clk 0:01:01]}  Nd6+ {[%clk 0:00:05]} 40. Kf3 {[%clk 0:01:01]}  Bg7 {[%clk 0:00:04]} 41. Rxg7# {[%clk 0:01:01]} 1-0


[Site "https://www.chess.com"]